[Event "Titled Tuesday Blitz March 29 Early 2022"]
[White "Fernandez Sanchez, Mario Andres"]
[Black "Sharma, Dinesh K."]
[WhiteFideId "6501621"]
[BlackFideId "5004110"]
[WhiteElo "2057"]
[BlackElo "2372"]
[Result "0-1"]
[Round "09"]
[TimeControl "180+1"]
[Date "2022.03.30"]
[WhiteClock "0:00:09"]
[BlackClock "0:01:44"]

1. d4 {[%clk 0:03:00]}  Nf6 {[%clk 0:02:58]} 2. Bf4 {[%clk 0:03:00]}  e6 {[%clk 0:02:57]} 3. e3 {[%clk 0:02:57]}  d5 {[%clk 0:02:57]} 4. Nf3 {[%clk 0:02:57]}  Bd6 {[%clk 0:02:57]} 5. Bg3 {[%clk 0:02:57]}  O-O {[%clk 0:02:56]} 6. Nbd2 {[%clk 0:02:52]}  c5 {[%clk 0:02:53]} 7. c3 {[%clk 0:02:52]}  Qc7 {[%clk 0:02:52]} 8. dxc5 {[%clk 0:02:52]}  Qxc5 {[%clk 0:02:51]} 9. Bd3 {[%clk 0:02:53]}  Nbd7 {[%clk 0:02:50]} 10. e4 {[%clk 0:02:50]}  dxe4 {[%clk 0:02:47]} 11. Nxe4 {[%clk 0:02:51]}  Nxe4 {[%clk 0:02:46]} 12. Bxe4 {[%clk 0:02:52]}  Bxg3 {[%clk 0:02:45]} 13. hxg3 {[%clk 0:02:17]}  h6 {[%clk 0:02:43]} 14. Qd4 {[%clk 0:02:08]}  Qxd4 {[%clk 0:02:40]} 15. Nxd4 {[%clk 0:02:09]}  Nf6 {[%clk 0:02:39]} 16. Bf3 {[%clk 0:02:07]}  e5 {[%clk 0:02:39]} 17. Nb5 {[%clk 0:02:04]}  e4 {[%clk 0:02:39]} 18. Be2 {[%clk 0:02:02]}  Be6 {[%clk 0:02:38]} 19. Nc7 {[%clk 0:01:56]}  Rac8 {[%clk 0:02:36]} 20. Nxe6 {[%clk 0:01:57]}  fxe6 {[%clk 0:02:37]} 21. O-O-O {[%clk 0:01:47]}  Nd5 {[%clk 0:02:33]} 22. Rhf1 {[%clk 0:01:39]}  Rf6 {[%clk 0:02:24]} 23. Bg4 {[%clk 0:01:33]}  Rcf8 {[%clk 0:02:21]} 24. Rfe1 {[%clk 0:01:18]}  Nb6 {[%clk 0:02:14]} 25. Rxe4 {[%clk 0:01:13]}  Rxf2 {[%clk 0:02:13]} 26. Bxe6+ {[%clk 0:01:12]}  Kh7 {[%clk 0:02:11]} 27. Bb3 {[%clk 0:01:02]}  Rxg2 {[%clk 0:02:08]} 28. Re7 {[%clk 0:00:48]}  Rxg3 {[%clk 0:02:05]} 29. Rxb7 {[%clk 0:00:40]}  h5 {[%clk 0:02:03]} 30. Rxa7 {[%clk 0:00:37]}  h4 {[%clk 0:02:00]} 31. Rb7 {[%clk 0:00:27]}  Rf6 {[%clk 0:02:00]} 32. Rh1 {[%clk 0:00:24]}  h3 {[%clk 0:01:59]} 33. a4 {[%clk 0:00:20]}  Nc8 {[%clk 0:01:51]} 34. Rc7 {[%clk 0:00:15]}  Rf2 {[%clk 0:01:46]} 35. Rxc8 {[%clk 0:00:11]}  h2 {[%clk 0:01:46]} 36. Bd5 {[%clk 0:00:09]}  Rg1+ {[%clk 0:01:44]} 0-1


[Site "https://www.chess.com"]

[Event "Titled Tuesday Blitz March 29 Early 2022"]
[White "Garv Gaur"]
[Black "Krysa, Leandro"]
[WhiteFideId "45030839"]
[BlackFideId "116807"]
[WhiteElo "2497"]
[BlackElo "2620"]
[Result "1/2-1/2"]
[Round "09"]
[TimeControl "180+1"]
[Date "2022.03.30"]
[WhiteClock "0:00:01"]
[BlackClock "0:00:03"]

1. d4 {[%clk 0:02:57]}  d5 {[%clk 0:02:58]} 2. Nf3 {[%clk 0:02:57]}  Nf6 {[%clk 0:02:57]} 3. c4 {[%clk 0:02:58]}  c6 {[%clk 0:02:57]} 4. g3 {[%clk 0:02:58]}  dxc4 {[%clk 0:02:54]} 5. Bg2 {[%clk 0:02:57]}  b5 {[%clk 0:02:54]} 6. a4 {[%clk 0:02:56]}  Bb7 {[%clk 0:02:52]} 7. Ne5 {[%clk 0:02:56]}  a6 {[%clk 0:02:50]} 8. Nc3 {[%clk 0:02:54]}  e6 {[%clk 0:02:47]} 9. axb5 {[%clk 0:02:51]}  axb5 {[%clk 0:02:47]} 10. Rxa8 {[%clk 0:02:49]}  Bxa8 {[%clk 0:02:48]} 11. O-O {[%clk 0:02:47]}  Be7 {[%clk 0:02:43]} 12. Nxb5 {[%clk 0:02:45]}  cxb5 {[%clk 0:02:44]} 13. Bxa8 {[%clk 0:02:45]}  O-O {[%clk 0:02:45]} 14. Bg2 {[%clk 0:02:42]}  Bd6 {[%clk 0:02:41]} 15. Bg5 {[%clk 0:02:39]}  h6 {[%clk 0:02:36]} 16. Bxf6 {[%clk 0:02:24]}  Qxf6 {[%clk 0:02:37]} 17. Nc6 {[%clk 0:02:18]}  Nxc6 {[%clk 0:02:31]} 18. Bxc6 {[%clk 0:02:19]}  Rb8 {[%clk 0:02:28]} 19. e4 {[%clk 0:02:15]}  e5 {[%clk 0:02:25]} 20. d5 {[%clk 0:02:15]}  Bc5 {[%clk 0:02:21]} 21. Qe2 {[%clk 0:02:14]}  Bd4 {[%clk 0:02:20]} 22. Kg2 {[%clk 0:02:11]}  Qd6 {[%clk 0:02:19]} 23. Ra1 {[%clk 0:02:08]}  Qb4 {[%clk 0:02:15]} 24. Ra2 {[%clk 0:02:05]}  Qb3 {[%clk 0:02:14]} 25. Ra5 {[%clk 0:01:54]}  Bxb2 {[%clk 0:02:09]} 26. d6 {[%clk 0:01:48]}  c3 {[%clk 0:01:38]} 27. Bd5 {[%clk 0:01:47]}  Qb4 {[%clk 0:01:27]} 28. Ra7 {[%clk 0:01:45]}  Qxd6 {[%clk 0:01:21]} 29. Rxf7 {[%clk 0:01:45]}  Qxd5 {[%clk 0:01:17]} 30. exd5 {[%clk 0:01:45]}  Kxf7 {[%clk 0:01:17]} 31. d6 {[%clk 0:01:38]}  Ke6 {[%clk 0:01:12]} 32. f4 {[%clk 0:01:38]}  Kd7 {[%clk 0:00:48]} 33. Qxe5 {[%clk 0:01:27]}  Rb7 {[%clk 0:00:22]} 34. f5 {[%clk 0:00:45]}  b4 {[%clk 0:00:20]} 35. Qe6+ {[%clk 0:00:44]}  Kd8 {[%clk 0:00:16]} 36. Qg8+ {[%clk 0:00:43]}  Kd7 {[%clk 0:00:16]} 37. Qe6+ {[%clk 0:00:30]}  Kd8 {[%clk 0:00:16]} 38. Qc4 {[%clk 0:00:19]}  b3 {[%clk 0:00:09]} 39. Qg8+ {[%clk 0:00:18]}  Kd7 {[%clk 0:00:09]} 40. Qe6+ {[%clk 0:00:18]}  Kd8 {[%clk 0:00:10]} 41. Qd5 {[%clk 0:00:09]}  Kc8 {[%clk 0:00:03]} 42. Qg8+ {[%clk 0:00:03]}  Kd7 {[%clk 0:00:03]} 43. Qe6+ {[%clk 0:00:03]}  Kd8 {[%clk 0:00:03]} 44. Qd5 {[%clk 0:00:04]}  Kc8 {[%clk 0:00:02]} 45. Qg8+ {[%clk 0:00:01]}  Kd7 {[%clk 0:00:03]} 1/2-1/2


[Site "https://www.chess.com"]

[Event "Titled Tuesday Blitz March 29 Early 2022"]
[White "Gurevich, Dmitry"]
[Black "Iljin, Timofey"]
[WhiteFideId "2000407"]
[BlackFideId "14110180"]
[WhiteElo "2599"]
[BlackElo "2482"]
[Result "1-0"]
[Round "09"]
[TimeControl "180+1"]
[Date "2022.03.30"]
[WhiteClock "0:01:45"]
[BlackClock "0:01:21"]

1. d4 {[%clk 0:03:00]}  f5 {[%clk 0:02:56]} 2. Nf3 {[%clk 0:02:58]}  Nf6 {[%clk 0:02:56]} 3. Bg5 {[%clk 0:02:57]}  e6 {[%clk 0:02:51]} 4. Nbd2 {[%clk 0:02:56]}  d5 {[%clk 0:02:49]} 5. e3 {[%clk 0:02:55]}  Be7 {[%clk 0:02:49]} 6. Bd3 {[%clk 0:02:55]}  O-O {[%clk 0:02:49]} 7. O-O {[%clk 0:02:55]}  Nc6 {[%clk 0:02:46]} 8. c4 {[%clk 0:02:49]}  h6 {[%clk 0:02:45]} 9. Bf4 {[%clk 0:02:48]}  Ne4 {[%clk 0:02:43]} 10. h3 {[%clk 0:02:32]}  Bf6 {[%clk 0:02:38]} 11. Rc1 {[%clk 0:02:27]}  Bd7 {[%clk 0:02:33]} 12. cxd5 {[%clk 0:02:19]}  exd5 {[%clk 0:02:34]} 13. Qb3 {[%clk 0:02:16]}  Be6 {[%clk 0:02:16]} 14. Qxb7 {[%clk 0:02:12]}  Ne7 {[%clk 0:02:16]} 15. Qxc7 {[%clk 0:02:07]}  Qe8 {[%clk 0:02:10]} 16. Bxe4 {[%clk 0:02:03]}  fxe4 {[%clk 0:02:09]} 17. Ne5 {[%clk 0:02:03]}  Nf5 {[%clk 0:02:01]} 18. Qc6 {[%clk 0:01:58]}  Qxc6 {[%clk 0:01:41]} 19. Rxc6 {[%clk 0:01:56]}  Bc8 {[%clk 0:01:36]} 20. Rfc1 {[%clk 0:01:54]}  Bb7 {[%clk 0:01:28]} 21. Rc7 {[%clk 0:01:52]}  Rac8 {[%clk 0:01:29]} 22. Nd7 {[%clk 0:01:48]}  Be7 {[%clk 0:01:21]} 23. Nxf8 {[%clk 0:01:45]} 1-0


[Site "https://www.chess.com"]

[Event "Titled Tuesday Blitz March 29 Early 2022"]
[White "Guseva, Marina"]
[Black "Petrova, Irina"]
[WhiteFideId "4149351"]
[BlackFideId "14124122"]
[WhiteElo "2160"]
[BlackElo "1993"]
[Result "1-0"]
[Round "09"]
[TimeControl "180+1"]
[Date "2022.03.30"]
[WhiteClock "0:00:10"]
[BlackClock "0:00:05"]

1. d4 {[%clk 0:03:00]}  d6 {[%clk 0:03:00]} 2. Nf3 {[%clk 0:02:58]}  g6 {[%clk 0:03:00]} 3. Bf4 {[%clk 0:02:55]}  Bg7 {[%clk 0:03:00]} 4. e3 {[%clk 0:02:55]}  Nd7 {[%clk 0:03:01]} 5. h3 {[%clk 0:02:54]}  e5 {[%clk 0:03:01]} 6. Bh2 {[%clk 0:02:54]}  Ne7 {[%clk 0:03:00]} 7. Nc3 {[%clk 0:02:49]}  O-O {[%clk 0:02:58]} 8. a4 {[%clk 0:02:48]}  f5 {[%clk 0:02:55]} 9. Bc4+ {[%clk 0:02:47]}  Kh8 {[%clk 0:02:54]} 10. Ng5 {[%clk 0:02:42]}  Nb6 {[%clk 0:02:34]} 11. Nf7+ {[%clk 0:02:12]}  Rxf7 {[%clk 0:02:34]} 12. Bxf7 {[%clk 0:02:11]}  exd4 {[%clk 0:02:18]} 13. exd4 {[%clk 0:02:07]}  Nc6 {[%clk 0:02:18]} 14. O-O {[%clk 0:01:53]}  Nxd4 {[%clk 0:02:17]} 15. Re1 {[%clk 0:01:48]}  Bd7 {[%clk 0:02:15]} 16. a5 {[%clk 0:01:44]}  Nc8 {[%clk 0:02:13]} 17. Bc4 {[%clk 0:01:23]}  Ne7 {[%clk 0:02:04]} 18. Nd5 {[%clk 0:01:17]}  Nxd5 {[%clk 0:01:55]} 19. Bxd5 {[%clk 0:01:17]}  Bc6 {[%clk 0:01:46]} 20. Bxc6 {[%clk 0:01:13]}  Nxc6 {[%clk 0:01:47]} 21. c3 {[%clk 0:01:13]}  a6 {[%clk 0:01:42]} 22. Qd5 {[%clk 0:01:09]}  Qg8 {[%clk 0:01:35]} 23. Qxg8+ {[%clk 0:01:04]}  Kxg8 {[%clk 0:01:35]} 24. Bf4 {[%clk 0:01:03]}  Kf7 {[%clk 0:01:31]} 25. Bd2 {[%clk 0:00:54]}  Re8 {[%clk 0:01:28]} 26. Rxe8 {[%clk 0:00:50]}  Kxe8 {[%clk 0:01:29]} 27. b4 {[%clk 0:00:49]}  Kd7 {[%clk 0:01:24]} 28. Rb1 {[%clk 0:00:45]}  Ne5 {[%clk 0:01:15]} 29. Kf1 {[%clk 0:00:44]}  Nc4 {[%clk 0:01:13]} 30. Ke2 {[%clk 0:00:42]}  c6 {[%clk 0:01:11]} 31. Kd3 {[%clk 0:00:35]}  d5 {[%clk 0:01:05]} 32. Bf4 {[%clk 0:00:32]}  Bf6 {[%clk 0:00:53]} 33. Re1 {[%clk 0:00:21]}  Nb2+ {[%clk 0:00:48]} 34. Kc2 {[%clk 0:00:20]}  Nc4 {[%clk 0:00:48]} 35. Be3 {[%clk 0:00:20]}  Na3+ {[%clk 0:00:47]} 36. Kd3 {[%clk 0:00:20]}  Nc4 {[%clk 0:00:47]} 37. Bd4 {[%clk 0:00:19]}  Be7 {[%clk 0:00:39]} 38. f3 {[%clk 0:00:19]}  Bd6 {[%clk 0:00:37]} 39. g4 {[%clk 0:00:18]}  fxg4 {[%clk 0:00:28]} 40. hxg4 {[%clk 0:00:18]}  Bf4 {[%clk 0:00:21]} 41. Rh1 {[%clk 0:00:17]}  h6 {[%clk 0:00:21]} 42. Re1 {[%clk 0:00:16]}  Nb2+ {[%clk 0:00:16]} 43. Kc2 {[%clk 0:00:15]}  Nc4 {[%clk 0:00:16]} 44. Rh1 {[%clk 0:00:15]}  Na3+ {[%clk 0:00:15]} 45. Kd3 {[%clk 0:00:15]}  Nc4 {[%clk 0:00:16]} 46. Bg7 {[%clk 0:00:14]}  Nb2+ {[%clk 0:00:14]} 47. Kc2 {[%clk 0:00:13]}  Nc4 {[%clk 0:00:12]} 48. Bxh6 {[%clk 0:00:13]}  Be5 {[%clk 0:00:09]} 49. Bd2 {[%clk 0:00:12]}  Ke6 {[%clk 0:00:08]} 50. Rh7 {[%clk 0:00:11]}  Nd6 {[%clk 0:00:06]} 51. Kd3 {[%clk 0:00:10]}  Kf6 {[%clk 0:00:05]} 52. f4 {[%clk 0:00:10]} 1-0


[Site "https://www.chess.com"]

[Event "Titled Tuesday Blitz March 29 Early 2022"]
[White "Dronavalli, Harika"]
[Black "Zhigalko, Sergei"]
[WhiteFideId "5015197"]
[BlackFideId "13502956"]
[WhiteElo "2382"]
[BlackElo "2662"]
[Result "0-1"]
[Round "09"]
[TimeControl "180+1"]
[Date "2022.03.29"]
[WhiteClock "0:00:11"]
[BlackClock "0:00:04"]

1. d4 {[%clk 0:03:00]}  Nf6 {[%clk 0:03:00]} 2. Nf3 {[%clk 0:03:00]}  e6 {[%clk 0:03:00]} 3. Bf4 {[%clk 0:02:58]}  d5 {[%clk 0:03:00]} 4. e3 {[%clk 0:02:57]}  Bd6 {[%clk 0:03:00]} 5. Nbd2 {[%clk 0:02:55]}  O-O {[%clk 0:03:00]} 6. c3 {[%clk 0:02:53]}  b6 {[%clk 0:03:00]} 7. Bd3 {[%clk 0:02:46]}  Ba6 {[%clk 0:02:57]} 8. Bc2 {[%clk 0:02:46]}  Nc6 {[%clk 0:02:40]} 9. Bg3 {[%clk 0:02:19]}  Qe7 {[%clk 0:02:31]} 10. Ne5 {[%clk 0:01:54]}  Bxe5 {[%clk 0:02:31]} 11. dxe5 {[%clk 0:01:50]}  Nd7 {[%clk 0:02:31]} 12. f4 {[%clk 0:01:46]}  f6 {[%clk 0:02:20]} 13. exf6 {[%clk 0:01:43]}  Nxf6 {[%clk 0:02:16]} 14. Nf3 {[%clk 0:01:41]}  Ne4 {[%clk 0:02:01]} 15. Bh4 {[%clk 0:01:37]}  Qc5 {[%clk 0:01:58]} 16. Nd4 {[%clk 0:01:27]}  e5 {[%clk 0:01:57]} 17. Bxe4 {[%clk 0:01:23]}  dxe4 {[%clk 0:01:13]} 18. fxe5 {[%clk 0:00:42]}  Nxe5 {[%clk 0:01:12]} 19. Qb3+ {[%clk 0:00:29]}  Bc4 {[%clk 0:01:11]} 20. Qa3 {[%clk 0:00:29]}  Nd3+ {[%clk 0:01:03]} 21. Kd2 {[%clk 0:00:28]}  Qh5 {[%clk 0:00:55]} 22. Qe7 {[%clk 0:00:20]}  c5 {[%clk 0:00:43]} 23. g4 {[%clk 0:00:15]}  Qd5 {[%clk 0:00:27]} 24. Nf5 {[%clk 0:00:15]}  Rxf5 {[%clk 0:00:09]} 25. gxf5 {[%clk 0:00:15]}  Nf2+ {[%clk 0:00:10]} 26. Ke1 {[%clk 0:00:16]}  Nxh1 {[%clk 0:00:09]} 27. Rd1 {[%clk 0:00:16]}  Qxf5 {[%clk 0:00:08]} 28. Rd7 {[%clk 0:00:17]}  Qf7 {[%clk 0:00:03]} 29. Qxe4 {[%clk 0:00:14]}  Qf1+ {[%clk 0:00:02]} 30. Kd2 {[%clk 0:00:13]}  Rf8 {[%clk 0:00:03]} 31. Qe5 {[%clk 0:00:11]}  Qe2+ {[%clk 0:00:03]} 32. Kc1 {[%clk 0:00:11]}  Rf1+ {[%clk 0:00:04]} 0-1


[Site "https://www.chess.com"]

[Event "Titled Tuesday Blitz March 29 Early 2022"]
[White "Heinemann, Josefine"]
[Black "Aradhya, Garg"]
[WhiteFideId "12900460"]
[BlackFideId "25006746"]
[WhiteElo "2300"]
[BlackElo "2169"]
[Result "1/2-1/2"]
[Round "09"]
[TimeControl "180+1"]
[Date "2022.03.29"]
[WhiteClock "0:01:02"]
[BlackClock "0:01:46"]

1. Nf3 {[%clk 0:03:00]}  d5 {[%clk 0:02:59]} 2. g3 {[%clk 0:03:00]}  c5 {[%clk 0:02:55]} 3. Bg2 {[%clk 0:02:59]}  Nc6 {[%clk 0:02:56]} 4. d4 {[%clk 0:02:58]}  Nf6 {[%clk 0:02:55]} 5. O-O {[%clk 0:02:57]}  e6 {[%clk 0:02:56]} 6. c4 {[%clk 0:02:51]}  cxd4 {[%clk 0:02:55]} 7. Nxd4 {[%clk 0:02:48]}  Bc5 {[%clk 0:02:55]} 8. Nb3 {[%clk 0:02:39]}  Bb6 {[%clk 0:02:55]} 9. cxd5 {[%clk 0:02:38]}  exd5 {[%clk 0:02:55]} 10. Nc3 {[%clk 0:02:37]}  d4 {[%clk 0:02:54]} 11. Na4 {[%clk 0:02:36]}  O-O {[%clk 0:02:54]} 12. Nxb6 {[%clk 0:02:36]}  axb6 {[%clk 0:02:54]} 13. Bg5 {[%clk 0:02:35]}  h6 {[%clk 0:02:27]} 14. Bxf6 {[%clk 0:02:33]}  Qxf6 {[%clk 0:02:28]} 15. Bxc6 {[%clk 0:02:34]}  bxc6 {[%clk 0:02:29]} 16. Qxd4 {[%clk 0:02:34]}  Qxd4 {[%clk 0:02:29]} 17. Nxd4 {[%clk 0:02:35]}  c5 {[%clk 0:02:29]} 18. Nf3 {[%clk 0:02:34]}  Be6 {[%clk 0:02:28]} 19. a3 {[%clk 0:02:33]}  Ra4 {[%clk 0:02:24]} 20. Rfd1 {[%clk 0:02:25]}  Re8 {[%clk 0:02:11]} 21. Rd6 {[%clk 0:02:08]}  Bg4 {[%clk 0:02:09]} 22. Kf1 {[%clk 0:02:02]}  Rae4 {[%clk 0:02:07]} 23. Ng1 {[%clk 0:01:52]}  Bxe2+ {[%clk 0:02:04]} 24. Nxe2 {[%clk 0:01:52]}  Rxe2 {[%clk 0:02:04]} 25. Rxb6 {[%clk 0:01:52]}  Rc2 {[%clk 0:02:04]} 26. Re1 {[%clk 0:01:51]}  Rd8 {[%clk 0:02:04]} 27. Kg2 {[%clk 0:01:47]}  Rdd2 {[%clk 0:02:02]} 28. Rf1 {[%clk 0:01:47]}  Rxb2 {[%clk 0:02:01]} 29. Rxb2 {[%clk 0:01:48]}  Rxb2 {[%clk 0:02:01]} 30. Rc1 {[%clk 0:01:48]}  Rb5 {[%clk 0:02:01]} 31. Kf3 {[%clk 0:01:48]}  Kf8 {[%clk 0:02:00]} 32. Ke4 {[%clk 0:01:47]}  Ke7 {[%clk 0:02:00]} 33. Kd5 {[%clk 0:01:46]}  Ra5 {[%clk 0:02:00]} 34. Rxc5 {[%clk 0:01:45]}  Rxa3 {[%clk 0:02:01]} 35. Ke4 {[%clk 0:01:43]}  Kf6 {[%clk 0:02:00]} 36. Rc6+ {[%clk 0:01:42]}  Kg5 {[%clk 0:01:59]} 37. h3 {[%clk 0:01:41]}  f5+ {[%clk 0:01:59]} 38. Kd4 {[%clk 0:01:39]}  Rf3 {[%clk 0:01:58]} 39. Rc2 {[%clk 0:01:38]}  h5 {[%clk 0:01:58]} 40. Ke5 {[%clk 0:01:31]}  h4 {[%clk 0:01:58]} 41. gxh4+ {[%clk 0:01:31]}  Kxh4 {[%clk 0:01:58]} 42. Rc7 {[%clk 0:01:17]}  g6 {[%clk 0:01:54]} 43. Rh7+ {[%clk 0:01:12]}  Kg5 {[%clk 0:01:53]} 44. h4+ {[%clk 0:01:12]}  Kg4 {[%clk 0:01:53]} 45. Rg7 {[%clk 0:01:11]}  Kh5 {[%clk 0:01:52]} 46. Rh7+ {[%clk 0:01:12]}  Kg4 {[%clk 0:01:52]} 47. Rg7 {[%clk 0:01:12]}  Rxf2 {[%clk 0:01:52]} 48. Rxg6+ {[%clk 0:01:12]}  Kxh4 {[%clk 0:01:52]} 49. Rg8 {[%clk 0:01:10]}  Rf1 {[%clk 0:01:51]} 50. Rg7 {[%clk 0:01:09]}  Rf2 {[%clk 0:01:51]} 51. Rg8 {[%clk 0:01:09]}  Kh3 {[%clk 0:01:51]} 52. Rg7 {[%clk 0:01:07]}  Rf1 {[%clk 0:01:50]} 53. Rg8 {[%clk 0:01:07]}  f4 {[%clk 0:01:51]} 54. Ke4 {[%clk 0:01:06]}  f3 {[%clk 0:01:50]} 55. Ke3 {[%clk 0:01:06]}  f2 {[%clk 0:01:50]} 56. Ke2 {[%clk 0:01:05]}  Rg1 {[%clk 0:01:50]} 57. Rh8+ {[%clk 0:01:05]}  Kg3 {[%clk 0:01:48]} 58. Rg8+ {[%clk 0:01:05]}  Kh4 {[%clk 0:01:47]} 59. Rh8+ {[%clk 0:01:05]}  Kg5 {[%clk 0:01:47]} 60. Kxf2 {[%clk 0:01:02]}  Ra1 {[%clk 0:01:46]} 61. Re8 {[%clk 0:01:01]}  Ra2+ {[%clk 0:01:46]} 62. Re2 {[%clk 0:01:01]}  Rxe2+ {[%clk 0:01:46]} 63. Kxe2 {[%clk 0:01:02]} 1/2-1/2


[Site "https://www.chess.com"]

[Event "Titled Tuesday Blitz March 29 Early 2022"]
[White "Jaferian, Koosha"]
[Black "Barrientos, Sergio E"]
[WhiteFideId "12507440"]
[BlackFideId "4401824"]
[WhiteElo "2030"]
[BlackElo "2397"]
[Result "0-1"]
[Round "09"]
[TimeControl "180+1"]
[Date "2022.03.29"]
[WhiteClock "0:00:03"]
[BlackClock "0:00:55"]

1. Nf3 {[%clk 0:02:55]}  Nf6 {[%clk 0:02:59]} 2. b3 {[%clk 0:02:55]}  g6 {[%clk 0:02:59]} 3. Bb2 {[%clk 0:02:56]}  Bg7 {[%clk 0:02:58]} 4. g3 {[%clk 0:02:56]}  O-O {[%clk 0:02:58]} 5. Bg2 {[%clk 0:02:57]}  d5 {[%clk 0:02:58]} 6. c4 {[%clk 0:02:57]}  dxc4 {[%clk 0:02:56]} 7. bxc4 {[%clk 0:02:58]}  c5 {[%clk 0:02:56]} 8. d3 {[%clk 0:02:59]}  Nc6 {[%clk 0:02:56]} 9. O-O {[%clk 0:02:59]}  Qc7 {[%clk 0:02:51]} 10. Nbd2 {[%clk 0:02:59]}  b6 {[%clk 0:02:51]} 11. Rb1 {[%clk 0:02:59]}  Bb7 {[%clk 0:02:51]} 12. Ng5 {[%clk 0:02:53]}  Rad8 {[%clk 0:02:50]} 13. Nge4 {[%clk 0:02:52]}  Nd4 {[%clk 0:02:45]} 14. Nxf6+ {[%clk 0:02:49]}  Bxf6 {[%clk 0:02:41]} 15. Ne4 {[%clk 0:02:44]}  Bg7 {[%clk 0:02:40]} 16. a4 {[%clk 0:02:31]}  Rd7 {[%clk 0:02:35]} 17. Nc3 {[%clk 0:02:19]}  Rfd8 {[%clk 0:02:34]} 18. Nb5 {[%clk 0:02:07]}  Nxb5 {[%clk 0:02:25]} 19. axb5 {[%clk 0:02:04]}  Bxg2 {[%clk 0:02:24]} 20. Kxg2 {[%clk 0:02:05]}  Bxb2 {[%clk 0:02:24]} 21. Rxb2 {[%clk 0:02:05]}  e5 {[%clk 0:02:25]} 22. Qa1 {[%clk 0:01:39]}  e4 {[%clk 0:02:23]} 23. dxe4 {[%clk 0:01:31]}  Rd4 {[%clk 0:02:21]} 24. Ra2 {[%clk 0:01:29]}  R8d7 {[%clk 0:02:18]} 25. Rc1 {[%clk 0:01:20]}  Rxe4 {[%clk 0:02:18]} 26. Rc3 {[%clk 0:01:07]}  Qe5 {[%clk 0:02:11]} 27. Rca3 {[%clk 0:00:58]}  Qxa1 {[%clk 0:01:47]} 28. Rxa1 {[%clk 0:00:59]}  Rxe2 {[%clk 0:01:45]} 29. Rxa7 {[%clk 0:00:57]}  Rdd2 {[%clk 0:01:45]} 30. Rf1 {[%clk 0:00:54]}  Rc2 {[%clk 0:01:43]} 31. Ra6 {[%clk 0:00:54]}  Re6 {[%clk 0:01:43]} 32. Ra4 {[%clk 0:00:54]}  g5 {[%clk 0:01:37]} 33. h3 {[%clk 0:00:47]}  Rf6 {[%clk 0:01:33]} 34. g4 {[%clk 0:00:40]}  Kg7 {[%clk 0:01:31]} 35. Kg3 {[%clk 0:00:40]}  Rc3+ {[%clk 0:01:27]} 36. f3 {[%clk 0:00:35]}  h6 {[%clk 0:01:23]} 37. Rf2 {[%clk 0:00:35]}  Rc1 {[%clk 0:01:22]} 38. Re2 {[%clk 0:00:25]}  Rg1+ {[%clk 0:01:20]} 39. Rg2 {[%clk 0:00:25]}  Rc1 {[%clk 0:01:18]} 40. Re2 {[%clk 0:00:22]}  Rc3 {[%clk 0:01:17]} 41. Rf2 {[%clk 0:00:22]}  Rb3 {[%clk 0:01:16]} 42. Kg2 {[%clk 0:00:20]}  Kg6 {[%clk 0:01:12]} 43. Kg3 {[%clk 0:00:20]}  h5 {[%clk 0:01:11]} 44. gxh5+ {[%clk 0:00:21]}  Kxh5 {[%clk 0:01:12]} 45. Rf1 {[%clk 0:00:16]}  Rf4 {[%clk 0:01:10]} 46. Rf2 {[%clk 0:00:15]}  Rc3 {[%clk 0:01:06]} 47. Ra6 {[%clk 0:00:15]}  Rf6 {[%clk 0:01:06]} 48. Ra4 {[%clk 0:00:15]}  Rc1 {[%clk 0:01:06]} 49. Re2 {[%clk 0:00:14]}  Rf1 {[%clk 0:01:05]} 50. Rf2 {[%clk 0:00:15]}  Rg1+ {[%clk 0:01:05]} 51. Rg2 {[%clk 0:00:15]}  Rb1 {[%clk 0:01:05]} 52. Rf2 {[%clk 0:00:14]}  Rb3 {[%clk 0:01:05]} 53. Ra8 {[%clk 0:00:11]}  Rb4 {[%clk 0:01:05]} 54. Rc2 {[%clk 0:00:11]}  Rf4 {[%clk 0:01:02]} 55. Rb8 {[%clk 0:00:10]}  Rb3 {[%clk 0:01:01]} 56. Rf2 {[%clk 0:00:10]}  Rf6 {[%clk 0:01:02]} 57. Rh8+ {[%clk 0:00:08]}  Kg6 {[%clk 0:01:01]} 58. Rg8+ {[%clk 0:00:09]}  Kh6 {[%clk 0:01:02]} 59. Rh8+ {[%clk 0:00:09]}  Kg7 {[%clk 0:01:02]} 60. Rb8 {[%clk 0:00:10]}  Rc3 {[%clk 0:01:02]} 61. h4 {[%clk 0:00:05]}  gxh4+ {[%clk 0:01:02]} 62. Kxh4 {[%clk 0:00:05]}  Rxc4+ {[%clk 0:01:03]} 63. Kg3 {[%clk 0:00:06]}  Rg6+ {[%clk 0:01:02]} 64. Kh3 {[%clk 0:00:05]}  Rb4 {[%clk 0:01:02]} 65. Ra2 {[%clk 0:00:03]}  Rxb5 {[%clk 0:01:01]} 66. Raa8 {[%clk 0:00:04]}  Rb1 {[%clk 0:01:01]} 67. Kh2 {[%clk 0:00:04]}  Rb2+ {[%clk 0:01:00]} 68. Kh3 {[%clk 0:00:04]}  b5 {[%clk 0:01:01]} 69. Rg8+ {[%clk 0:00:04]}  Kf6 {[%clk 0:01:00]} 70. Rgc8 {[%clk 0:00:04]}  c4 {[%clk 0:01:00]} 71. Rc6+ {[%clk 0:00:04]}  Ke5 {[%clk 0:01:00]} 72. Rc7 {[%clk 0:00:04]}  Rb1 {[%clk 0:00:59]} 73. Kh2 {[%clk 0:00:03]}  Rf6 {[%clk 0:00:56]} 74. Rc5+ {[%clk 0:00:02]}  Kd4 {[%clk 0:00:57]} 75. Rc7 {[%clk 0:00:02]}  Rxf3 {[%clk 0:00:57]} 76. Kg2 {[%clk 0:00:02]}  Rd3 {[%clk 0:00:56]} 77. Kf2 {[%clk 0:00:02]}  Rb2+ {[%clk 0:00:56]} 78. Ke1 {[%clk 0:00:03]}  Rh3 {[%clk 0:00:55]} 79. Rd7+ {[%clk 0:00:02]}  Kc5 {[%clk 0:00:55]} 80. Rc8+ {[%clk 0:00:01]}  Kb4 {[%clk 0:00:56]} 81. Rxf7 {[%clk 0:00:01]}  Rh1+ {[%clk 0:00:55]} 82. Rf1 {[%clk 0:00:02]}  Rb1+ {[%clk 0:00:55]} 83. Ke2 {[%clk 0:00:03]}  Rhxf1 {[%clk 0:00:56]} 84. Ke3 {[%clk 0:00:03]}  Rbd1 {[%clk 0:00:55]} 85. Ke4 {[%clk 0:00:02]}  Rfe1+ {[%clk 0:00:55]} 86. Kf3 {[%clk 0:00:03]}  Rd7 {[%clk 0:00:55]} 87. Rb8 {[%clk 0:00:02]}  Rf7+ {[%clk 0:00:55]} 88. Kg4 {[%clk 0:00:03]}  Rg1+ {[%clk 0:00:55]} 0-1


[Site "https://www.chess.com"]